bitfinex/quotes_SOLUSD_20240725
["timestamp","ask_amount","ask_price","bid_price","bid_amount"]
[1721910387170,45.0,169.27,169.17,20.0]
[1721910387398,395.1074,169.28,169.17,20.0]
[1721910387576,50.9078,169.27,169.17,20.0]
[1721910388402,50.9078,169.27,169.19,13.43]
[1721910388403,13.43,169.24,169.19,13.43]
[1721910389189,13.43,169.25,169.19,13.43]
[1721910390278,13.43,169.24,169.18,13.43]
[1721910390485,13.43,169.23,169.18,13.43]
[1721910390879,13.43,169.23,169.17,33.43]
[1721910391187,13.43,169.22,169.16,19.5392]
[1721910391592,35.55,169.25,169.16,6.1092]
[1721910391937,13.43,169.2,169.14,15.7941]
[1721910392078,13.43,169.22,169.17,13.43]
[1721910392268,13.43,169.23,169.17,13.43]
[1721910393678,13.43,169.22,169.17,13.43]
[1721910396301,13.43,169.22,169.16,13.43]
[1721910396814,13.43,169.22,169.17,13.43]
[1721910397610,13.43,169.22,169.16,13.43]
[1721910398203,45.0,169.24,169.17,13.43]
[1721910398407,13.43,169.22,169.17,13.43]
[1721910399210,13.43,169.23,169.17,13.43]
[1721910399430,13.43,169.22,169.17,13.43]
[1721910399610,12.93,169.22,169.17,13.43]
[1721910401606,12.93,169.22,169.16,13.43]
[1721910402303,13.43,169.21,169.16,13.43]
[1721910402744,13.43,169.21,169.15,13.43]
[1721910403025,13.43,169.2,169.15,13.43]
[1721910403530,13.43,169.17,169.12,6.6174]
[1721910403846,5.9108,169.18,169.1,13.43]
[1721910404132,13.43,169.15,169.1,13.43]
[1721910404340,13.43,169.16,169.11,13.43]
[1721910404833,13.43,169.16,169.08,6.1078]
[1721910405036,13.43,169.16,169.11,13.43]
[1721910405527,13.43,169.17,169.11,13.43]
[1721910405717,13.43,169.16,169.11,13.43]
[1721910406123,13.43,169.17,169.11,13.43]
[1721910406320,13.43,169.17,169.12,13.43]
[1721910407312,13.43,169.18,169.13,13.43]
[1721910407512,58.43,169.19,169.13,13.43]
[1721910409629,58.43,169.19,169.14,13.43]
[1721910410028,64.3407,169.19,169.13,13.43]
[1721910411834,19.3407,169.19,169.13,13.43]
[1721910412022,389.2,169.2,169.12,13.43]
[1721910412023,13.43,169.17,169.12,13.43]
[1721910412218,13.43,169.16,169.08,6.1078]
[1721910412419,13.43,169.15,169.1,13.43]
[1721910413340,13.43,169.16,169.11,13.43]
[1721910413720,19.3414,169.17,169.11,13.43]
[1721910415536,5.9115,169.16,169.08,6.1078]
[1721910415843,13.43,169.16,169.08,6.1078]
[1721910416137,13.43,169.16,169.11,13.43]
[1721910416340,19.3416,169.16,169.11,13.43]
[1721910416750,13.43,169.17,169.11,13.43]
[1721910417116,424.75,169.19,169.11,13.43]
[1721910417117,13.43,169.16,169.11,13.43]
[1721910419130,19.3416,169.16,169.11,13.43]
[1721910419527,19.3416,169.16,169.1,13.43]
[1721910420329,13.43,169.16,169.1,13.43]
[1721910421323,19.3415,169.16,169.1,13.43]
[1721910423349,13.43,169.13,169.08,13.43]
[1721910423547,13.43,169.12,169.07,13.43]
[1721910424460,13.43,169.13,169.07,13.43]
[1721910424655,13.43,169.12,169.07,13.43]
[1721910425622,16.503,169.14,169.04,6.0023]
[1721910425623,13.43,169.11,169.04,6.0023]
[1721910425827,13.43,169.1,169.05,13.43]
[1721910427556,5.9133,169.11,169.04,6.0023]
[1721910427557,13.43,169.11,169.06,13.43]
[1721910427865,19.3429,169.12,169.07,13.43]
[1721910428063,13.43,169.12,169.07,13.43]
[1721910428828,58.43,169.11,169.06,13.43]
[1721910429033,13.43,169.12,169.06,13.43]
[1721910429262,19.343,169.12,169.06,13.43]
[1721910429554,13.43,169.11,169.06,13.43]
[1721910430141,13.43,169.11,169.04,6.0023]
[1721910430344,13.43,169.11,169.05,13.43]
[1721910431448,13.43,169.1,169.05,13.43]
[1721910431652,13.43,169.11,169.06,13.43]
[1721910431867,5.9126,169.13,169.06,13.43]
[1721910432153,13.43,169.11,169.06,13.43]
[1721910432752,13.43,169.09,169.01,2.3641]
[1721910432965,13.43,169.07,169.02,13.43]
[1721910433443,438.18,169.12,168.99,6.6406]
[1721910433444,19.3454,169.05,168.99,6.6406]
[1721910433647,19.3458,169.04,168.96,2.3641]
[1721910433841,13.43,169.03,168.98,13.43]
[1721910434041,19.3461,169.03,168.97,13.43]
[1721910434354,13.43,169.01,168.95,6.3297]
[1721910434546,13.43,169.01,168.95,19.7597]
[1721910434547,13.43,169.0,168.95,19.7597]
[1721910434749,13.43,169.0,168.95,13.43]
[1721910435249,13.43,169.0,168.94,13.43]
[1721910435759,13.43,169.0,168.96,5.9184]
[1721910436253,13.43,169.0,168.97,5.9181]
[1721910436648,13.43,169.0,168.94,13.43]
[1721910436848,389.2,169.05,168.99,13.43]
[1721910437157,389.2,169.05,169.01,13.43]
[1721910437355,389.2,169.05,168.96,53.72]
[1721910437356,389.2,169.05,169.03,13.43]
[1721910437663,19.3443,169.08,169.03,13.43]
[1721910437836,13.43,169.08,169.02,13.43]
[1721910438036,401.404,169.1,169.02,13.43]
[1721910438355,13.43,169.08,169.02,13.43]
[1721910439257,389.2,169.1,169.03,13.43]
[1721910439480,13.43,169.09,169.04,13.43]
[1721910440981,13.43,169.08,169.03,13.43]
[1721910443049,5.9137,169.1,169.03,13.43]
[1721910443250,13.43,169.08,169.03,13.43]
[1721910446071,70.1933,169.12,169.04,13.43]
[1721910446072,13.43,169.1,169.04,13.43]
[1721910446379,13.43,169.1,169.05,13.43]
[1721910447757,389.2,169.13,169.09,13.43]
[1721910448068,16.1737,169.16,169.04,13.43]
[1721910448069,19.3437,169.1,169.04,13.43]
[1721910448259,13.43,169.1,169.04,13.43]
[1721910448458,13.43,169.09,169.03,13.43]
[1721910449179,13.43,169.09,169.04,13.43]
[1721910450378,13.43,169.06,168.99,8.5644]
[1721910450576,13.43,169.06,169.01,13.43]
[1721910450760,5.9143,169.08,169.0,13.43]
[1721910450761,13.43,169.05,169.0,13.43]
[1721910453057,16.175,169.09,169.01,13.43]
[1721910453262,13.43,169.06,169.01,13.43]
[1721910453687,13.43,169.07,169.01,13.43]
[1721910454377,13.43,169.06,169.01,13.43]
[1721910454883,13.43,169.05,169.0,13.43]
[1721910455558,16.175,169.09,168.96,62.4627]
[1721910455559,13.43,169.04,168.99,13.43]
[1721910455758,13.43,169.03,168.98,13.43]
[1721910456061,57.639,169.09,169.01,13.43]
[1721910456269,13.43,169.06,169.01,13.43]
[1721910456765,13.43,169.06,169.0,13.43]
[1721910457265,13.43,169.06,168.96,63.6459347]
[1721910457468,13.43,169.06,168.97,20.0]
[1721910460188,13.43,169.04,168.98,13.43]
[1721910460681,13.43,169.04,168.99,13.43]
[1721910461268,13.43,169.04,168.98,13.43]
[1721910463079,13.43,169.03,168.98,13.43]
[1721910463277,13.43,169.03,168.97,33.43]
[1721910463982,13.43,169.03,168.98,13.43]
[1721910464365,13.43,169.04,168.98,13.43]
[1721910464989,13.43,169.03,168.98,13.43]
[1721910465370,13.43,169.03,168.93,6.90880661]
[1721910465579,13.43,169.02,168.97,13.43]
[1721910467584,13.43,169.01,168.96,13.43]
[1721910467785,13.43,169.01,168.95,13.43]
[1721910468176,28.64682103,169.07,168.98,13.43]
[1721910468493,13.43,169.05,169.0,13.43]
[1721910468783,13.43,169.06,169.01,13.43]
[1721910469794,13.43,169.06,169.0,13.43]
[1721910470168,13.43,169.05,169.0,13.43]
[1721910471484,13.43,169.06,169.01,13.43]
[1721910472687,389.2,169.1,169.03,13.43]
[1721910472989,13.43,169.09,169.04,13.43]
[1721910474196,389.2,169.1,169.05,13.43]
[1721910474504,402.63,169.1,169.05,13.43]
[1721910475373,13.43,169.09,169.04,13.43]
[1721910475574,13.43,169.09,169.03,13.43]
[1721910476290,13.43,169.08,169.03,13.43]
[1721910476795,13.43,169.08,169.02,13.43]
[1721910477292,13.43,169.07,169.02,13.43]
[1721910477495,13.43,169.07,169.01,13.43]
[1721910477994,13.43,169.06,169.01,13.43]
[1721910478393,13.43,169.05,169.0,13.43]
[1721910478983,13.43,169.04,168.99,13.43]
[1721910479694,28.9259,169.04,168.98,13.43]
[1721910481773,15.4959,169.04,168.98,13.43]
[1721910481973,28.9259,169.04,168.98,13.43]
[1721910482700,28.9259,169.04,168.99,13.43]
[1721910484486,28.9259,169.04,168.88,5.06763661]
[1721910484797,28.9259,169.04,168.98,13.43]
[1721910485200,13.43,169.02,168.89,46.02710133]
[1721910485498,14.64474349,169.02,168.96,13.43]
[1721910486494,14.64474349,169.01,168.96,13.43]
[1721910486792,13.43,169.01,168.96,13.43]
[1721910487503,14.64474349,169.01,168.95,13.43]
[1721910487704,13.43,169.0,168.95,13.43]
[1721910487878,13.43,168.99,168.94,13.43]
[1721910488194,14.64474349,168.99,168.94,13.43]
[1721910488403,13.43,168.97,168.92,13.43]
[1721910488699,13.43,168.96,168.91,13.43]
[1721910489484,13.43,168.96,168.84,1.18376604]
[1721910489679,13.43,168.94,168.83,0.7867576]
[1721910489881,13.43,168.93,168.9,5.9204]
[1721910490084,13.43,168.94,168.88,13.43]
[1721910490281,13.43,168.92,168.87,13.43]
[1721910490488,13.43,168.91,168.88,5.9212]
[1721910490693,13.43,168.91,168.89,5.9209]
[1721910490903,13.43,168.91,168.86,13.43]
[1721910491104,13.43,168.91,168.87,5.9216]
[1721910491278,14.64474349,168.92,168.87,13.43]
[1721910491482,14.64474349,168.92,168.88,5.9211]
[1721910491779,1.21474349,168.92,168.89,5.9208]
[1721910491997,13.43,168.91,168.89,5.9208]
[1721910492197,13.43,168.91,168.86,13.43]
[1721910492383,13.43,168.91,168.88,5.9212]
[1721910493003,13.43,168.91,168.87,5.9216]
[1721910493306,13.43,168.91,168.83,0.7867576]
[1721910493307,14.64474349,168.9,168.85,13.43]
[1721910493483,14.64474349,168.9,168.86,5.922]
[1721910493803,13.43,168.89,168.86,5.922]
[1721910495104,1.21474349,168.88,168.86,5.922]
[1721910495301,13.43,168.89,168.86,5.922]
[1721910495685,13.43,168.87,168.84,5.9224]
[1721910495890,13.43,168.86,168.84,5.9224]
[1721910496407,13.43,168.85,168.83,6.7095576]
[1721910497703,13.43,168.85,168.83,0.7867576]
[1721910498019,13.43,168.84,168.83,0.7867576]
[1721910498511,19.3527,168.84,168.83,0.7867576]
[1721910499307,65.56744349,168.84,168.83,0.7867576]
[1721910499888,35.55,168.82,168.7,6.11941021]
[1721910500095,13.43,168.77,168.72,13.43]
[1721910500315,441.33884349,168.81,168.74,13.43]
[1721910500316,13.43,168.79,168.74,13.43]
[1721910500695,13.43,168.79,168.73,13.43]
[1721910500899,13.43,168.78,168.73,13.43]
[1721910504408,13.43,168.79,168.74,13.43]
[1721910505022,13.43,168.78,168.68,1.18515167]
[1721910505202,13.43,168.78,168.73,13.43]
[1721910507313,13.43,168.77,168.72,13.43]
[1721910508313,13.43,168.79,168.74,13.43]
[1721910508513,13.43,168.78,168.67,21.18504353]
[1721910508731,13.43,168.78,168.73,13.43]
[1721910509212,5.9238,168.82,168.73,13.43]
[1721910509416,5.9238,168.82,168.74,13.43]
[1721910509417,13.43,168.8,168.74,13.43]
[1721910509730,13.43,168.78,168.73,13.43]
[1721910510640,14.8065,168.85,168.65,1.02873453]
[1721910510641,67.15,168.74,168.65,1.02873453]
[1721910510810,67.15,168.66,168.5,0.7867576]
[1721910511005,35.55,168.71,168.5,0.7867576]
[1721910511006,13.43,168.55,168.5,0.7867576]
[1721910511226,36.76474349,168.63,168.5,0.7867576]
[1721910511828,13.43,168.57,168.52,13.43]
[1721910512128,52.14544349,168.62,168.5,1.97328274]
[1721910512312,33.0001,168.63,168.5,1.97328274]
[1721910512510,5.9309,168.61,168.5,0.7867576]
[1721910512725,45.0,168.62,168.5,0.7867576]
[1721910512916,27.07,168.63,168.51,1.18649725]
[1721910513106,0.40121882,168.65,168.52,1.18630308]
[1721910513312,45.0,168.65,168.52,1.18630308]
[1721910513511,35.55,168.69,168.52,1.18630308]
[1721910513714,72.07,168.68,168.53,27.07]
[1721910513913,27.07,168.72,168.56,27.07]
[1721910514126,27.07,168.72,168.57,1.18586076]
[1721910514304,27.07,168.72,168.58,1.18580441]
[1721910514511,27.07,168.72,168.58,46.18580441]
[1721910514704,1.21474349,168.71,168.59,20.0]
[1721910514950,5.9288,168.67,168.59,20.0]
[1721910515147,1.21474349,168.68,168.59,20.0]
[1721910515433,43.79544489,168.71,168.56,27.07]
[1721910515736,5.9278,168.7,168.57,21.18590296]
[1721910515960,45.0,168.7,168.58,1.18591319]
[1721910516247,5.928,168.69,168.57,21.18591185]
[1721910516437,5.928,168.69,168.57,20.0]
[1721910516636,5.9284,168.68,168.57,20.0]
[1721910517150,5.928,168.69,168.57,20.0]
[1721910517533,27.07,168.69,168.57,20.0]
[1721910517752,45.0,168.68,168.54,20.0]
[1721910517930,1.21474349,168.67,168.54,21.1860855]
[1721910518439,45.0,168.68,168.55,1.18611121]
[1721910518846,1.21474349,168.67,168.54,20.0]
[1721910519031,1.21474349,168.67,168.54,21.18604496]
[1721910520255,1.21474349,168.67,168.54,20.0]
[1721910520449,1.21474349,168.67,168.55,1.18617391]
[1721910520642,1.21474349,168.67,168.54,20.0]
[1721910520965,7.14354349,168.67,168.54,20.0]
[1721910521262,1.21474349,168.67,168.54,20.0]
[1721910521672,1.21474349,168.67,168.55,46.18613933]
[1721910521833,1.21474349,168.67,168.56,20.0]
[1721910522540,1.21474349,168.67,168.54,21.18613122]
[1721910522745,1.21474349,168.67,168.54,20.0]
[1721910522947,7.14374349,168.67,168.54,20.0]
[1721910523145,45.0,168.66,168.54,20.0]
[1721910523347,35.55,168.64,168.5,0.7867576]
[1721910523548,35.55,168.59,168.5,0.7867576]
[1721910523856,1.21474349,168.62,168.5,0.7867576]
[1721910524355,1.21474349,168.63,168.5,27.8567576]
[1721910524657,1.21474349,168.65,168.51,1.18639902]
[1721910524834,1.21474349,168.64,168.5,29.04315662]
[1721910525033,1.21474349,168.64,168.5,27.8567576]
[1721910525361,41.6112,168.6,168.5,27.8567576]
[1721910525564,46.21474349,168.59,168.51,20.0]
[1721910525851,45.0,168.59,168.51,20.0]
[1721910526358,45.0,168.59,168.5,0.7867576]
[1721910526560,1.21474349,168.58,168.5,0.7867576]
[1721910526764,87.82624349,168.59,168.5,0.7867576]
[1721910526929,87.82624349,168.59,168.46,36.2904073]
[1721910526930,27.07,168.53,168.46,36.2904073]
[1721910527134,36.89474349,168.52,168.46,36.2904073]
[1721910527429,80.68,168.51,168.46,36.2904073]
[1721910527836,86.6144,168.51,168.46,36.2904073]
[1721910528039,35.68,168.49,168.46,19.6238073]
[1721910528250,68.6857,168.47,168.46,2.9572073]
[1721910528459,35.68,168.43,168.33,0.7867576]
[1721910528761,35.68,168.4,168.33,0.7867576]
[1721910528936,1.21474349,168.39,168.33,0.7867576]
[1721910529144,45.0,168.39,168.33,0.7867576]
[1721910529340,1.21474349,168.39,168.33,0.7867576]
[1721910529658,0.43879867,168.42,168.33,0.7867576]
[1721910529866,5.9369,168.44,168.33,0.7867576]
[1721910530071,5.9335,168.54,168.35,27.07]
[1721910530270,1.21474349,168.55,168.34,1.18785799]
[1721910530271,35.68,168.57,168.36,31.67718721]
[1721910530564,35.68,168.53,168.36,31.67718721]
[1721910530855,35.68,168.52,168.36,1.18718721]
[1721910531244,42.82874349,168.52,168.36,1.18718721]
[1721910531430,1.21474349,168.52,168.36,21.18718721]
[1721910531634,2.31814489,168.53,168.37,20.0]
[1721910531860,2.31814489,168.53,168.33,0.7867576]
[1721910531861,35.68,168.47,168.33,0.7867576]
[1721910532035,1.21474349,168.46,168.33,0.7867576]
[1721910532364,41.6168,168.44,168.33,0.7867576]
[1721910532539,1.21474349,168.55,168.34,1.18775308]
[1721910532853,3.52330375,168.54,168.34,1.18775308]
[1721910533059,2.31814489,168.53,168.34,1.18775308]
[1721910533253,1.21474349,168.52,168.34,1.18775308]
[1721910533558,3.53288838,168.53,168.35,20.0]
[1721910533760,0.5902698,170.58,168.34,66.18775308]
[1721910533761,6.12462471,168.57,168.37,50.49]
[1721910534071,5.9329,168.55,168.38,66.18701088]
[1721910534244,1.21474349,168.54,168.38,66.18701088]
[1721910534773,7.14804349,168.54,168.38,66.18701088]
[1721910535272,1.21474349,168.59,168.41,30.49]
[1721910535452,1.21474349,168.59,168.42,20.0]
[1721910535768,39.21288838,168.59,168.43,1.18691105]
[1721910535976,5.9319,168.58,168.43,1.18691105]
[1721910536143,1.21474349,168.57,168.43,1.18691105]
[1721910536348,1.21474349,168.57,168.42,21.18692944]
[1721910536537,7.14694349,168.57,168.43,1.18696429]
[1721910536736,5.9327,168.56,168.42,21.18696165]
[1721910536963,1.21474349,168.55,168.43,1.18696429]
[1721910537135,1.21474349,168.55,168.42,21.18696186]
[1721910537648,41.6137,168.53,168.42,20.0]
[1721910537848,52.14874349,168.52,168.39,1.16069421]
[1721910538245,86.614,168.52,168.37,1.18724669]
[1721910538444,86.614,168.52,168.34,1.03004926]
[1721910538445,41.6144,168.51,168.35,1.18734396]
[1721910538752,46.21474349,168.5,168.36,1.18740236]
[1721910539082,1.21474349,168.5,168.36,1.18740236]
[1721910539364,1.21474349,168.5,168.34,1.18743711]
[1721910539552,5.9361,168.46,168.33,0.7867576]
[1721910539739,2.30856026,168.49,168.33,1.97444824]
[1721910539941,5.9357,168.47,168.33,1.97444824]
[1721910540136,2.30856026,168.49,168.33,1.97444824]
[1721910540347,41.6136,168.54,168.33,21.97444824]
[1721910540637,41.615,168.5,168.33,1.97444824]
[1721910540860,5.9345,168.51,168.33,21.97444824]
[1721910541046,1.21474349,168.5,168.33,61.97444824]
[1721910541247,1.21474349,168.5,168.33,41.97444824]
[1721910541653,50.9346,168.51,168.33,21.97444824]
[1721910541855,5.9347,168.5,168.34,30.49]
[1721910542071,5.9347,168.5,168.35,66.18734005]
[1721910542259,46.21474349,168.51,168.36,1.18734067]
[1721910542653,81.89474349,168.51,168.36,1.18734067]
[1721910543171,81.89474349,168.51,168.36,46.18734067]
[1721910543353,81.89474349,168.51,168.37,20.0]
[1721910543548,81.89474349,168.51,168.38,1.18734956]
[1721910543950,87.82914349,168.51,168.38,1.18734956]
[1721910544272,81.89474349,168.51,168.38,1.18737687]
[1721910544648,81.89474349,168.51,168.34,30.49]
[1721910544848,2.30856026,168.5,168.34,31.67759892]
[1721910545047,1.21474349,168.49,168.34,31.67759892]
[1721910545248,1.21474349,168.48,168.34,31.67759892]
[1721910545455,42.83024349,168.48,168.34,1.18759892]
[1721910545653,67.38474349,168.48,168.34,1.18759892]
[1721910545863,35.68,168.46,168.33,0.7867576]
[1721910546077,1.21474349,168.45,168.33,0.7867576]
[1721910546465,36.89474349,168.45,168.33,0.7867576]
[1721910546779,1.21474349,168.45,168.33,0.7867576]
[1721910546949,7.34111977,168.45,168.33,0.7867576]
[1721910547149,35.68,168.44,168.33,0.7867576]
[1721910547455,5.9378,168.41,168.33,0.7867576]
[1721910547756,1.21474349,168.4,168.33,0.7867576]
[1721910548167,1.21474349,168.39,168.33,0.7867576]
[1721910548370,45.0,168.41,168.33,0.7867576]
[1721910548576,1.21474349,168.4,168.33,0.7867576]
[1721910548771,1.21474349,168.39,168.33,0.7867576]
[1721910549252,5.9389,168.38,168.33,0.7867576]
[1721910549652,41.6189,168.38,168.33,0.7867576]
[1721910549946,45.0,168.37,168.33,0.7867576]
[1721910550160,1.21474349,168.38,168.33,0.7867576]
[1721910550552,1.21474349,168.4,168.33,0.7867576]
[1721910550845,5.9393,168.37,168.33,0.7867576]
[1721910551046,7.15404349,168.37,168.33,0.7867576]
[1721910551465,45.0,168.36,168.33,0.7867576]
[1721910552666,50.9397,168.36,168.33,0.7867576]
[1721910552970,45.0,168.36,168.33,0.7867576]
[1721910553600,50.9397,168.36,168.33,0.7867576]
[1721910553795,36.89474349,168.35,168.33,0.7867576]
[1721910553986,43.90997686,168.34,168.33,0.7867576]
[1721910554189,1.21474349,168.35,168.33,0.7867576]
[1721910554411,41.6203,168.34,168.33,0.7867576]
[1721910554694,5.9403,168.34,168.33,0.7867576]
[1721910556899,36.89474349,168.28,168.24,5.9437]
[1721910557067,36.89474349,168.28,168.22,5.9444]
[1721910557272,41.6231,168.26,168.16,0.7867576]
[1721910557497,50.9436,168.25,168.2,5.9451]
[1721910557688,50.9436,168.25,168.16,0.7867576]
[1721910557872,1.21474349,168.24,168.16,0.7867576]
[1721910558072,86.6238,168.25,168.16,0.7867576]
[1721910558291,5.9438,168.25,168.16,0.7867576]
[1721910558601,1.21474349,168.26,168.16,0.7867576]
[1721910558798,35.68,168.25,168.16,0.7867576]
[1721910558991,46.21474349,168.24,168.16,0.7867576]
[1721910559300,46.21474349,168.23,168.16,0.7867576]
[1721910559507,36.89474349,168.25,168.16,0.7867576]
[1721910559793,50.9439,168.24,168.16,0.7867576]
[1721910560405,7.15894349,168.23,168.16,0.7867576]
[1721910560578,1.21474349,168.23,168.16,0.7867576]
[1721910562375,50.9439,168.24,168.16,0.7867576]
[1721910562611,45.0,168.24,168.16,0.7867576]
[1721910562810,41.6238,168.25,168.16,0.7867576]
[1721910562973,36.89474349,168.3,168.16,0.7867576]
[1721910563299,5.9432,168.26,168.16,0.7867576]
[1721910563486,1.21474349,168.25,168.16,0.7867576]
[1721910564396,81.89474349,168.25,168.16,0.7867576]
[1721910564586,5.9442,168.23,168.16,0.7867576]
[1721910564783,7.15894349,168.23,168.16,0.7867576]
[1721910564988,1.21474349,168.23,168.16,0.7867576]
[1721910565779,52.15904349,168.23,168.16,0.7867576]
[1721910565981,7.15904349,168.23,168.16,0.7867576]
[1721910566182,1.21474349,168.23,168.16,0.7867576]
[1721910566501,5.9442,168.23,168.16,0.7867576]
[1721910566697,1.21474349,168.22,168.16,0.7867576]
[1721910567686,86.6235,168.25,168.16,0.7867576]
[1721910567986,80.68,168.25,168.16,0.7867576]
[1721910568396,86.6235,168.25,168.16,0.7867576]
[1721910568990,6.14016174,168.29,168.16,0.7867576]
[1721910569190,35.68,168.31,168.17,1.18878459]
[1721910569496,35.68,168.31,168.16,0.7867576]
[1721910569697,37.99814489,168.31,168.17,1.18903523]
[1721910570005,45.15458838,168.31,168.17,1.18903523]
[1721910570202,39.21288838,168.31,168.17,1.18903523]
[1721910570388,3.53288838,168.31,168.18,1.18876484]
[1721910570701,5.9418,168.3,168.18,1.18876484]
[1721910570882,1.21474349,168.3,168.18,1.18876484]
[1721910571082,7.15594349,168.32,168.18,1.18876484]
[1721910571284,5.9406,168.34,168.18,1.18876484]
[1721910571499,1.21474349,168.33,168.18,21.18876484]
[1721910572088,7.15574349,168.33,168.18,21.18876484]
[1721910572488,1.21474349,168.32,168.18,21.18876484]
[1721910572709,5.9414,168.31,168.18,21.18876484]
[1721910572885,7.15584349,168.32,168.18,21.18876484]
[1721910573391,12.07648504,168.36,168.19,45.0]
[1721910573720,7.15494349,168.35,168.2,21.18837898]
[1721910573899,7.15494349,168.35,168.21,46.18839022]
[1721910574209,5.9403,168.34,168.22,20.0]
[1721910574595,1.21474349,168.35,168.22,20.0]
[1721910574886,1.21474349,168.34,168.22,20.0]
[1721910575098,36.89474349,168.34,168.22,20.0]
[1721910575305,51.74644349,168.34,168.16,1.97544683]
[1721910575707,5.942,168.3,168.16,1.97544683]
[1721910576289,5.942,168.3,168.16,0.7867576]
[1721910576509,50.5317,168.34,168.16,0.7867576]
[1721910576510,5.9421,168.29,168.16,0.7867576]
[1721910576811,1.21474349,168.28,168.16,0.7867576]
[1721910577301,7.15714349,168.28,168.16,0.7867576]
[1721910577506,1.21474349,168.28,168.16,0.7867576]
[1721910577704,1.21474349,168.33,168.16,0.7867576]
[1721910577881,36.89474349,168.32,168.16,0.7867576]
[1721910578091,35.68,168.3,168.16,0.7867576]
[1721910578407,45.0,168.29,168.16,0.7867576]
[1721910578704,1.21474349,168.28,168.16,0.7867576]
[1721910579006,1.21474349,168.28,168.16,1.97563311]
[1721910579186,1.21474349,168.28,168.16,0.7867576]
[1721910580088,1.21474349,168.3,168.16,0.7867576]
[1721910580289,1.21474349,168.29,168.17,1.18880573]
[1721910580594,35.68,168.34,168.18,1.18871434]
[1721910580800,5.9404,168.34,168.18,1.18871434]
[1721910581107,1.21474349,168.36,168.18,1.18871434]
[1721910581108,35.68,168.33,168.18,1.18871434]
[1721910581315,7.15584349,168.32,168.18,1.18871434]
[1721910581627,1.21474349,168.32,168.18,1.18871434]
[1721910582486,5.9404,168.34,168.18,1.18871434]
[1721910582683,5.9407,168.33,168.18,1.18871434]
[1721910582914,7.15584349,168.32,168.18,1.18871434]
[1721910583108,35.68,168.35,168.18,1.18871434]
[1721910583284,5.9409,168.33,168.18,1.18871434]
[1721910583599,1.21474349,168.34,168.18,1.18871434]
[1721910583806,52.15534349,168.34,168.18,1.18871434]
[1721910584118,50.9406,168.34,168.18,1.18871434]
[1721910584425,5.9407,168.33,168.18,46.18871434]
[1721910584718,1.21474349,168.32,168.19,20.0]
[1721910584886,50.9404,168.34,168.2,46.18849673]
[1721910585091,1.21474349,168.35,168.21,21.18849673]
[1721910585291,1.21474349,168.34,168.21,20.0]
[1721910585604,56.66448418,168.37,168.21,20.0]
[1721910585792,56.66448418,168.37,168.17,20.0]
[1721910585993,56.66448418,168.37,168.18,45.0]
[1721910586210,5.9414,168.31,168.19,20.0]
[1721910586414,56.66448418,168.37,168.19,20.0]
[1721910586613,5.9411,168.32,168.19,20.0]
[1721910586807,8.45382907,168.37,168.2,65.0]
[1721910587014,8.45382907,168.37,168.21,20.0]
[1721910587015,5.9396,168.36,168.21,20.0]
[1721910587214,35.68,168.36,168.21,20.0]
[1721910587403,5.941,168.32,168.21,20.0]
[1721910587712,5.9403,168.35,168.16,20.7867576]
[1721910588014,5.9406,168.34,168.17,65.0]